fUSD/lending_fUSD_20240331
["ID","MTS","AMOUNT","RATE_DAILY","PERIOD"]
[321099874,1711894278712,-500.0,0.00057534,120]
[321099875,1711894278721,-500.0,0.00057534,120]
[321099876,1711894278731,-1338.37,0.00057534,120]
[321099877,1711894278740,-628.78407242,0.00057534,120]
[321099878,1711894278749,-500.0,0.00057534,120]
[321099879,1711894278759,-519.06,0.00057534,120]
[321099880,1711894278768,-1622.59,0.00057534,120]
[321099881,1711894278777,-500.0,0.00057534,120]
[321099882,1711894278787,-605.37,0.00057534,120]
[321099883,1711894278796,-2011.39,0.00057534,120]
[321099884,1711894278805,-1383.81,0.00057534,120]
[321099885,1711894278815,-2546.45,0.00057534,120]
[321099886,1711894278823,-1692.34,0.00057534,120]
[321099887,1711894278833,-2361.13,0.00057534,120]
[321099888,1711894278842,-500.0,0.00057534,120]
[321099889,1711894278851,-5275.16,0.00057534,120]
[321099890,1711894278860,-5572.11,0.00057534,120]
[321099891,1711894278870,-1851.82,0.00057534,120]
[321099892,1711894278879,-568.01,0.00057534,120]
[321099893,1711894278888,-533.01,0.00057534,120]
[321099894,1711894278897,-2843.98,0.00057534,120]
[321099895,1711894278906,-500.0,0.00057534,120]
[321099896,1711894278915,-500.0,0.00057534,120]
[321099897,1711894278924,-526.73,0.00057534,120]
[321099898,1711894278934,-3300.5,0.00057534,120]
[321099899,1711894278943,-1608.2,0.00057534,120]
[321099900,1711894278952,-500.0,0.00057534,16]
[321099901,1711894278962,-551.36,0.00057534,120]
[321099902,1711894278971,-617.86,0.00057534,120]
[321099903,1711894278980,-500.0,0.00057534,120]
[321099904,1711894278989,-1509.08,0.00057534,120]
[321099905,1711894278998,-500.0,0.00057534,120]
[321099906,1711894279008,-1066.72,0.00057534,120]
[321099907,1711894279017,-1382.58,0.00057534,120]
[321099908,1711894279026,-500.0,0.00057534,120]
[321099909,1711894279035,-500.0,0.00057534,120]
[321099910,1711894279044,-1791.54,0.00057534,120]
[321099911,1711894279053,-500.0,0.00057534,120]
[321099912,1711894279062,-500.23,0.00057534,120]
[321099913,1711894279071,-828.12,0.00057534,120]
[321099914,1711894279080,-534.14,0.00057534,120]
[321099915,1711894279089,-513.82,0.00057534,120]
[321099916,1711894279098,-7754.49,0.00057534,120]
[321099917,1711894279107,-500.0,0.00057534,120]
[321099918,1711894279116,-2108.77,0.00057534,120]
[321099919,1711894279125,-2518.23,0.00057534,120]
[321099920,1711894279135,-500.0,0.00057534,120]
[321099921,1711894279143,-2060.41,0.00057534,120]
[321099922,1711894279152,-500.0,0.00057534,120]
[321099923,1711894279161,-500.0,0.00057534,120]
[321099924,1711894279170,-500.0,0.00057534,120]
[321099925,1711894279179,-507.06,0.00057534,120]
[321099926,1711894279188,-501.29,0.00057534,120]
[321099927,1711894279197,-500.0,0.00057534,120]
[321099928,1711894279206,-500.0,0.00057534,120]
[321099929,1711894279215,-9968.34,0.00057534,120]
[321099930,1711894279224,-3471.43,0.00057534,120]
[321099931,1711894279234,-500.0,0.00057534,120]
[321099932,1711894279242,-151.0,0.00057616,120]
[321099933,1711894279251,-30505.9,0.00057673,6]
[321099934,1711894279260,-11808.73,0.00057673,6]
[321099935,1711894279269,-33901.86,0.00057673,6]
[321099936,1711894279277,-37420.47,0.00057673,6]
[321099937,1711894279286,-32589.58,0.00057673,6]
[321099938,1711894279295,-26076.13,0.00057673,6]
[321099939,1711894279304,-4093.64,0.00057673,6]
[321099940,1711894279313,-54692.37,0.00057673,6]
[321099941,1711894279321,-26664.22,0.00057673,6]
[321099942,1711894279330,-16512.28,0.00057673,6]
[321099943,1711894279339,-45588.15,0.00057673,6]
[321099944,1711894279347,-45332.38,0.00057673,6]
[321099945,1711894279356,-590.0,0.000578,14]
[321099946,1711894279365,-664.08,0.00057808,120]
[321099947,1711894279375,-2110.47,0.00057808,120]
[321099948,1711894279384,-316.02739878,0.00057808,120]
[321099949,1711894279393,-9971.6,0.00057808,120]
[321099950,1711894279402,-150.0,0.00057808,120]
[321099951,1711894279411,-500.0,0.00057808,120]
[321099952,1711894279420,-500.0,0.00057808,120]
[321099953,1711894279429,-6781.1,0.00057808,120]
[321099954,1711894279438,-500.0,0.00057808,120]
[321099955,1711894279447,-500.0,0.00057808,120]
[321099956,1711894279456,-500.0,0.00057808,120]
[321099957,1711894279466,-500.0,0.00057808,2]
[321099958,1711894279475,-500.0,0.00057808,120]
[321099959,1711894279484,-1467.87,0.00057808,120]
[321099960,1711894279493,-1113.81,0.00057808,120]
[321099961,1711894279501,-500.0,0.00057808,120]
[321099962,1711894279511,-11137.41,0.00057808,120]
[321099963,1711894279520,-914.36,0.00057808,120]
[321099964,1711894279530,-786.86,0.00057808,120]
[321099965,1711894279539,-938.23,0.00057808,120]
[321099966,1711894279548,-1333.54,0.00057808,120]
[321099967,1711894279557,-1958.97,0.00057808,21]
[321099968,1711894279566,-1044.86,0.00057808,120]
[321099969,1711894279575,-500.86,0.00057808,120]
[321099970,1711894279584,-5640.51,0.00057808,120]
[321099971,1711894279595,-1892.16,0.00057808,120]
[321099972,1711894279737,-500.0,0.00057808,120]
[321099973,1711894279746,-517.98,0.00057808,120]
[321099974,1711894279755,-500.0,0.00057808,120]
[321099975,1711894279764,-642.68,0.00057808,120]
[321099976,1711894279773,-500.0,0.00057808,120]
[321099977,1711894279782,-506.29,0.00057808,120]
[321099978,1711894279791,-2259.45,0.00057808,120]
[321099979,1711894279800,-908.46,0.00057808,120]
[321099980,1711894279809,-500.0,0.00057808,120]
[321099981,1711894279818,-639.27,0.00057808,120]
[321099982,1711894279827,-1092.83,0.00057808,120]
[321099983,1711894279836,-500.0,0.00057808,120]
[321099984,1711894279845,-2487.04,0.00057808,120]
[321099985,1711894279854,-500.0,0.00057808,120]
[321099986,1711894279863,-1781.98,0.00057808,120]
[321099987,1711894279873,-500.0,0.00057808,120]
[321099988,1711894279882,-1175.87,0.00057808,120]
[321099989,1711894279890,-1336.92,0.00057808,120]
[321099990,1711894279900,-3011.12,0.00057808,120]
[321099991,1711894279909,-500.0,0.00057808,120]
[321099992,1711894279918,-595.80355601,0.00057808,120]
[321099993,1711894279927,-1528.21,0.00057808,120]
[321099994,1711894279936,-544.34,0.00057808,120]
[321099995,1711894279945,-500.0,0.00057808,120]
[321099996,1711894279955,-500.0,0.00057808,120]
[321099997,1711894279964,-1338.37,0.00057808,120]
[321099998,1711894279973,-500.0,0.00057808,120]
[321099999,1711894279983,-519.06,0.00057808,120]
[321100000,1711894279992,-1622.59,0.00057808,120]
[321100001,1711894280001,-500.0,0.00057808,120]
[321100002,1711894280010,-605.37,0.00057808,120]
[321100003,1711894280019,-2011.39,0.00057808,120]
[321100004,1711894280029,-1383.81,0.00057808,120]
[321100005,1711894280038,-2546.45,0.00057808,120]
[321100006,1711894280047,-1692.34,0.00057808,120]
[321100007,1711894280056,-2361.13,0.00057808,120]
[321100008,1711894280066,-500.0,0.00057808,120]
[321100009,1711894280075,-5275.16,0.00057808,120]
[321100010,1711894280085,-1851.82,0.00057808,120]
[321100011,1711894280095,-5572.11,0.00057808,120]
[321100012,1711894280104,-568.01,0.00057808,120]
[321100013,1711894280114,-533.01,0.00057808,120]
[321100014,1711894280123,-2843.98,0.00057808,120]
[321100015,1711894280133,-500.0,0.00057808,120]
[321100016,1711894280142,-500.0,0.00057808,120]
[321100017,1711894280152,-526.73,0.00057808,120]
[321100018,1711894280161,-3300.5,0.00057808,120]
[321100019,1711894280170,-1608.2,0.00057808,120]
[321100020,1711894280179,-500.0,0.00057808,16]
[321100021,1711894280188,-551.36,0.00057808,120]
[321100022,1711894280197,-500.0,0.00057808,120]
[321100023,1711894280206,-1509.08,0.00057808,120]
[321100024,1711894280216,-172.67032653,0.00057808,120]
[321100025,1711894280225,-1066.72,0.00057808,120]
[321100026,1711894280234,-1382.58,0.00057808,120]
[321100027,1711894280244,-500.0,0.00057808,120]
[321100028,1711894280253,-500.0,0.00057808,120]
[321100029,1711894280262,-1791.54,0.00057808,120]
[321100030,1711894280271,-500.0,0.00057808,120]
[321100031,1711894280280,-500.23,0.00057808,120]
[321100032,1711894280290,-828.12,0.00057808,120]
[321100033,1711894280299,-534.14,0.00057808,120]
[321100034,1711894280308,-513.82,0.00057808,120]
[321100035,1711894280318,-500.0,0.00057808,120]
[321100036,1711894280327,-7754.49,0.00057808,120]
[321100037,1711894280336,-2108.77,0.00057808,120]
[321100038,1711894280346,-2518.23,0.00057808,120]
[321100039,1711894280356,-500.0,0.00057808,120]
[321100040,1711894280365,-2060.41,0.00057808,120]
[321100041,1711894280374,-500.0,0.00057808,120]
[321100042,1711894280384,-500.0,0.00057808,120]
[321100043,1711894280393,-500.0,0.00057808,120]
[321100044,1711894280403,-507.06,0.00057808,120]
[321100045,1711894280412,-501.29,0.00057808,120]
[321100046,1711894280422,-500.0,0.00057808,120]
[321100047,1711894280431,-500.0,0.00057808,120]
[321100048,1711894280441,-9968.34,0.00057808,120]
[321100049,1711894280450,-3471.43,0.00057808,120]
[321100050,1711894280460,-500.0,0.00057808,120]
[321100051,1711894280469,-244.0,0.0005797,15]
[321100052,1711894280478,-244.0,0.0005798,15]
[321100053,1711894280487,-244.0,0.0005799,15]
[321100054,1711894280496,-664.08,0.00058082,120]
[321100055,1711894280506,-2110.47,0.00058082,120]
[321100056,1711894280515,-9971.6,0.00058082,120]
[321100057,1711894280524,-150.0,0.00058082,120]
[321100058,1711894280533,-316.06120263,0.00058082,120]
[321100059,1711894280542,-500.0,0.00058082,120]
[321100060,1711894280552,-6781.1,0.00058082,120]
[321100061,1711894280561,-500.0,0.00058082,120]
[321100062,1711894280570,-500.0,0.00058082,120]
[321100063,1711894280580,-500.0,0.00058082,120]
[321100064,1711894280592,-500.0,0.00058082,2]
[321100065,1711894280601,-500.0,0.00058082,120]
[321100066,1711894280611,-1467.87,0.00058082,120]
[321100067,1711894280620,-1113.81,0.00058082,120]
[321100068,1711894280629,-500.0,0.00058082,120]
[321100069,1711894280638,-11137.41,0.00058082,120]
[321100070,1711894280648,-914.36,0.00058082,120]
[321100071,1711894280658,-786.86,0.00058082,120]
[321100072,1711894280667,-938.23,0.00058082,120]
[321100073,1711894280677,-1333.54,0.00058082,120]
[321100074,1711894280687,-1958.97,0.00058082,21]
[321100075,1711894280696,-1044.86,0.00058082,120]
[321100076,1711894280705,-500.86,0.00058082,120]
[321100077,1711894280715,-5640.51,0.00058082,120]
[321100078,1711894280725,-1892.16,0.00058082,120]
[321100079,1711894280735,-500.0,0.00058082,120]
[321100080,1711894280745,-517.98,0.00058082,120]
[321100081,1711894280755,-500.0,0.00058082,120]
[321100082,1711894280765,-642.68,0.00058082,120]
[321100083,1711894280774,-500.0,0.00058082,120]
[321100084,1711894280783,-506.29,0.00058082,120]
[321100085,1711894280793,-2259.45,0.00058082,120]
[321100086,1711894280803,-908.46,0.00058082,120]
[321100087,1711894280813,-500.0,0.00058082,120]
[321100088,1711894280823,-639.27,0.00058082,120]
[321100089,1711894280834,-1092.83,0.00058082,120]
[321100090,1711894280843,-500.0,0.00058082,120]
[321100091,1711894280853,-2487.04,0.00058082,120]
[321100092,1711894280863,-500.0,0.00058082,120]
[321100093,1711894280873,-1781.98,0.00058082,120]
[321100094,1711894280884,-500.0,0.00058082,120]
[321100095,1711894280894,-1175.87,0.00058082,120]
[321100096,1711894280904,-1336.92,0.00058082,120]
[321100097,1711894280914,-3011.12,0.00058082,120]
[321100098,1711894280923,-500.0,0.00058082,120]
[321100099,1711894280933,-1528.21,0.00058082,120]
[321100100,1711894280941,-544.34,0.00058082,120]
[321100101,1711894280950,-500.0,0.00058082,120]
[321100102,1711894280959,-500.0,0.00058082,120]
[321100103,1711894280970,-1338.37,0.00058082,120]
[321100104,1711894280980,-500.0,0.00058082,120]
[321100105,1711894280990,-519.06,0.00058082,120]
[321100106,1711894281000,-1622.59,0.00058082,120]
[321100107,1711894281009,-500.0,0.00058082,120]
[321100108,1711894281021,-605.37,0.00058082,120]
[321100109,1711894281031,-2011.39,0.00058082,120]
[321100110,1711894281041,-1383.81,0.00058082,120]
[321100111,1711894281051,-2546.45,0.00058082,120]
[321100112,1711894281062,-1692.34,0.00058082,120]
[321100113,1711894281072,-2361.13,0.00058082,120]
[321100114,1711894281082,-500.0,0.00058082,120]
[321100115,1711894281093,-5275.16,0.00058082,120]
[321100116,1711894281104,-1851.82,0.00058082,120]
[321100117,1711894281115,-5572.11,0.00058082,120]
[321100118,1711894281126,-568.01,0.00058082,120]
[321100119,1711894281137,-533.01,0.00058082,120]
[321100120,1711894281148,-2843.98,0.00058082,120]
[321100121,1711894281158,-500.0,0.00058082,120]
[321100122,1711894281168,-500.0,0.00058082,120]
[321100123,1711894281180,-526.73,0.00058082,120]
[321100124,1711894281190,-3300.5,0.00058082,120]
[321100125,1711894281200,-1608.2,0.00058082,120]
[321100126,1711894281210,-500.0,0.00058082,16]
[321100127,1711894281221,-551.36,0.00058082,120]
[321100128,1711894281232,-500.0,0.00058082,120]
[321100129,1711894281242,-1509.08,0.00058082,120]
[321100130,1711894281252,-1066.72,0.00058082,120]
[321100131,1711894281262,-1382.58,0.00058082,120]
[321100132,1711894281273,-500.0,0.00058082,120]
[321100133,1711894281284,-500.0,0.00058082,120]
[321100134,1711894281295,-1791.54,0.00058082,120]
[321100135,1711894281305,-500.0,0.00058082,120]
[321100136,1711894281315,-500.23,0.00058082,120]
[321100137,1711894281326,-828.12,0.00058082,120]
[321100138,1711894281337,-534.14,0.00058082,120]
[321100139,1711894281347,-513.82,0.00058082,120]
[321100140,1711894281356,-500.0,0.00058082,120]
[321100141,1711894281366,-7754.49,0.00058082,120]
[321100142,1711894281376,-2108.77,0.00058082,120]
[321100143,1711894281387,-2518.23,0.00058082,120]
[321100144,1711894281396,-306.40329326,0.00058082,120]
[321100145,1711894281406,-2060.41,0.00058082,120]
[321100146,1711894281415,-500.0,0.00058082,120]
[321100147,1711894281424,-500.0,0.00058082,120]
[321100148,1711894281434,-500.0,0.00058082,120]
[321100149,1711894281444,-507.06,0.00058082,120]
[321100150,1711894281454,-501.29,0.00058082,120]
[321100151,1711894281466,-500.0,0.00058082,120]
[321100152,1711894281476,-500.0,0.00058082,120]
[321100153,1711894281486,-9968.34,0.00058082,120]
[321100154,1711894281497,-3471.43,0.00058082,120]
[321100155,1711894281507,-500.0,0.00058082,120]
[321100156,1711894281517,-168.46,0.000581,30]
[321100157,1711894281527,-191.14,0.000582,30]
[321100158,1711894281536,-45297.1,0.0005833,6]
[321100159,1711894281546,-7700.41,0.0005833,6]
[321100160,1711894281556,-19521.5,0.0005833,6]
[321100161,1711894281566,-45570.55,0.0005833,6]
[321100162,1711894281576,-153.21259,0.00058353,2]
[321100163,1711894281588,-664.08,0.00058356,120]
[321100164,1711894281598,-2110.47,0.00058356,120]
[321100165,1711894281608,-9971.6,0.00058356,120]
[321100166,1711894281618,-150.0,0.00058356,120]
[321100167,1711894281627,-500.0,0.00058356,120]
[321100168,1711894281639,-6781.1,0.00058356,120]
[321100169,1711894281649,-500.0,0.00058356,120]
[321100170,1711894281659,-500.0,0.00058356,120]
[321100171,1711894281670,-500.0,0.00058356,120]
[321100172,1711894281680,-500.0,0.00058356,2]
[321100173,1711894281690,-500.0,0.00058356,120]
[321100174,1711894281700,-1467.87,0.00058356,120]
[321100175,1711894281709,-1113.81,0.00058356,120]
[321100176,1711894281718,-500.0,0.00058356,120]
[321100177,1711894281728,-11137.41,0.00058356,120]
[321100178,1711894281737,-914.36,0.00058356,120]
[321100179,1711894281747,-786.86,0.00058356,120]
[321100180,1711894281757,-938.23,0.00058356,120]
[321100181,1711894281766,-1333.54,0.00058356,120]
[321100182,1711894281775,-1958.97,0.00058356,21]
[321100183,1711894281785,-1044.86,0.00058356,120]
[321100184,1711894281794,-500.86,0.00058356,120]
[321100185,1711894281804,-5640.51,0.00058356,120]
[321100186,1711894281813,-1892.16,0.00058356,120]
[321100187,1711894281823,-500.0,0.00058356,120]
[321100188,1711894281832,-517.98,0.00058356,120]
[321100189,1711894281842,-500.0,0.00058356,120]
[321100190,1711894281851,-642.68,0.00058356,120]
[321100191,1711894281860,-500.0,0.00058356,120]
[321100192,1711894281869,-506.29,0.00058356,120]
[321100193,1711894281878,-2259.45,0.00058356,120]
[321100194,1711894281886,-908.46,0.00058356,120]
[321100195,1711894281895,-500.0,0.00058356,120]
[321100196,1711894281905,-639.27,0.00058356,120]
[321100197,1711894281913,-1092.83,0.00058356,120]
[321100198,1711894281922,-500.0,0.00058356,120]
[321100199,1711894281931,-2487.04,0.00058356,120]
[321100200,1711894281940,-500.0,0.00058356,120]
[321100201,1711894281949,-1781.98,0.00058356,120]
[321100202,1711894281958,-500.0,0.00058356,120]
[321100203,1711894281967,-1175.87,0.00058356,120]
[321100204,1711894281977,-1336.92,0.00058356,120]
[321100205,1711894281986,-3011.12,0.00058356,120]
[321100206,1711894281995,-500.0,0.00058356,120]
[321100207,1711894282005,-1528.21,0.00058356,120]
[321100208,1711894282014,-544.34,0.00058356,120]
[321100209,1711894282023,-500.0,0.00058356,120]
[321100210,1711894282033,-500.0,0.00058356,120]
[321100211,1711894282041,-1338.37,0.00058356,120]
[321100212,1711894282050,-500.0,0.00058356,120]
[321100213,1711894282060,-519.06,0.00058356,120]
[321100214,1711894282069,-1622.59,0.00058356,120]
[321100215,1711894282078,-500.0,0.00058356,120]
[321100216,1711894282087,-605.37,0.00058356,120]
[321100217,1711894282096,-2011.39,0.00058356,120]
[321100218,1711894282106,-1383.81,0.00058356,120]
[321100219,1711894282115,-2546.45,0.00058356,120]
[321100220,1711894282124,-1692.34,0.00058356,120]
[321100221,1711894282133,-2361.13,0.00058356,120]
[321100222,1711894282142,-500.0,0.00058356,120]
[321100223,1711894282152,-5275.16,0.00058356,120]
[321100224,1711894282161,-1851.82,0.00058356,120]
[321100225,1711894282170,-5572.11,0.00058356,120]
[321100226,1711894282180,-568.01,0.00058356,120]
[321100227,1711894282189,-533.01,0.00058356,120]
[321100228,1711894282198,-2843.98,0.00058356,120]
[321100229,1711894282207,-500.0,0.00058356,120]
[321100230,1711894282217,-500.0,0.00058356,120]
[321100231,1711894282226,-526.73,0.00058356,120]
[321100232,1711894282236,-3300.5,0.00058356,120]
[321100233,1711894282245,-1608.2,0.00058356,120]
[321100234,1711894282255,-500.0,0.00058356,16]
[321100235,1711894282264,-551.36,0.00058356,120]
[321100236,1711894282273,-500.0,0.00058356,120]
[321100237,1711894282283,-1509.08,0.00058356,120]
[321100238,1711894282293,-1066.72,0.00058356,120]
[321100239,1711894282302,-1382.58,0.00058356,120]
[321100240,1711894282312,-500.0,0.00058356,120]
[321100241,1711894282321,-418.22026283,0.00058356,120]
[321100242,1711894282331,-1791.54,0.00058356,120]
[321100243,1711894282342,-500.0,0.00058356,120]
[321100244,1711894282354,-500.23,0.00058356,120]
[321100245,1711894282364,-828.12,0.00058356,120]
[321100246,1711894282376,-534.14,0.00058356,120]
[321100247,1711894282387,-513.82,0.00058356,120]
[321100248,1711894282397,-500.0,0.00058356,120]
[321100249,1711894282407,-7754.49,0.00058356,120]
[321100250,1711894282418,-2108.77,0.00058356,120]
[321100251,1711894282429,-2518.23,0.00058356,120]
[321100252,1711894282438,-2060.41,0.00058356,120]
[321100253,1711894282447,-500.0,0.00058356,120]
[321100254,1711894282458,-500.0,0.00058356,120]
[321100255,1711894282470,-500.0,0.00058356,120]
[321100256,1711894282481,-507.06,0.00058356,120]
[321100257,1711894282491,-501.29,0.00058356,120]
[321100258,1711894282502,-500.0,0.00058356,120]
[321100259,1711894282512,-500.0,0.00058356,120]
[321100260,1711894282522,-9968.34,0.00058356,120]
[321100261,1711894282532,-500.0,0.00058356,120]
[321100262,1711894282542,-3471.43,0.00058356,120]
[321100263,1711894282552,-151.0,0.00058356,120]
[321100264,1711894282561,-286.46,0.00058377,2]
[321100265,1711894282572,-283.23,0.00058548,120]
[321100266,1711894282582,-154.19,0.00058575,120]
[321100267,1711894282593,-664.08,0.0005863,120]
[321100268,1711894282604,-2110.47,0.0005863,120]
[321100269,1711894282613,-9971.6,0.0005863,120]
[321100270,1711894282623,-203.43361359,0.0005863,120]
[321100271,1711894282634,-500.0,0.0005863,120]
[321100272,1711894282644,-6781.1,0.0005863,120]
[321100273,1711894282655,-500.0,0.0005863,120]
[321100274,1711894282666,-500.0,0.0005863,120]
[321100275,1711894282676,-500.0,0.0005863,120]
[321100276,1711894282686,-500.0,0.0005863,2]
[321100277,1711894282696,-500.0,0.0005863,120]
[321100278,1711894282706,-1467.87,0.0005863,120]
[321100279,1711894282715,-1113.81,0.0005863,120]
[321100280,1711894282725,-500.0,0.0005863,120]
[321100281,1711894282734,-11137.41,0.0005863,120]
[321100282,1711894282744,-914.36,0.0005863,120]
[321100283,1711894282754,-786.86,0.0005863,120]
[321100284,1711894282763,-938.23,0.0005863,120]
[321100285,1711894282773,-1333.54,0.0005863,120]
[321100286,1711894282783,-1958.97,0.0005863,21]
[321100287,1711894282793,-1044.86,0.0005863,120]
[321100288,1711894282803,-500.86,0.0005863,120]
[321100289,1711894282812,-5640.51,0.0005863,120]
[321100290,1711894282821,-1892.16,0.0005863,120]
[321100291,1711894282830,-500.0,0.0005863,120]
[321100292,1711894282841,-517.98,0.0005863,120]
[321100293,1711894282851,-500.0,0.0005863,120]
[321100294,1711894282861,-642.68,0.0005863,120]
[321100295,1711894282872,-500.0,0.0005863,120]
[321100296,1711894282882,-506.29,0.0005863,120]
[321100297,1711894282892,-2259.45,0.0005863,120]
[321100298,1711894283032,-908.46,0.0005863,120]
[321100299,1711894283042,-500.0,0.0005863,120]
[321100300,1711894283051,-639.27,0.0005863,120]
[321100301,1711894283061,-1092.83,0.0005863,120]
[321100302,1711894283070,-500.0,0.0005863,120]
[321100303,1711894283080,-2487.04,0.0005863,120]
[321100304,1711894283090,-175.16343517,0.0005863,120]
[321100305,1711894283100,-1781.98,0.0005863,120]
[321100306,1711894283110,-500.0,0.0005863,120]
[321100307,1711894283120,-1175.87,0.0005863,120]
[321100308,1711894283130,-1336.92,0.0005863,120]
[321100309,1711894283141,-3011.12,0.0005863,120]
[321100310,1711894283150,-500.0,0.0005863,120]
[321100311,1711894283161,-1528.21,0.0005863,120]
[321100312,1711894283171,-544.34,0.0005863,120]
[321100313,1711894283182,-500.0,0.0005863,120]
[321100314,1711894283192,-500.0,0.0005863,120]
[321100315,1711894283203,-1338.37,0.0005863,120]
[321100316,1711894283212,-500.0,0.0005863,120]
[321100317,1711894283222,-519.06,0.0005863,120]
[321100318,1711894283233,-1622.59,0.0005863,120]
[321100319,1711894283243,-500.0,0.0005863,120]
[321100320,1711894283252,-605.37,0.0005863,120]
[321100321,1711894283262,-2011.39,0.0005863,120]
[321100322,1711894283271,-1383.81,0.0005863,120]
[321100323,1711894283282,-2546.45,0.0005863,120]
[321100324,1711894283293,-1692.34,0.0005863,120]
[321100325,1711894283305,-2361.13,0.0005863,120]
[321100326,1711894283316,-500.0,0.0005863,120]
[321100327,1711894283326,-5275.16,0.0005863,120]
[321100328,1711894283337,-1851.82,0.0005863,120]
[321100329,1711894283348,-5572.11,0.0005863,120]
[321100330,1711894283358,-568.01,0.0005863,120]
[321100331,1711894283369,-533.01,0.0005863,120]
[321100332,1711894283379,-2843.98,0.0005863,120]
[321100333,1711894283390,-500.0,0.0005863,120]
[321100334,1711894283402,-500.0,0.0005863,120]
[321100335,1711894283411,-526.73,0.0005863,120]
[321100336,1711894283421,-3300.5,0.0005863,120]
[321100337,1711894283430,-1608.2,0.0005863,120]
[321100338,1711894283440,-645.3,0.0005863,16]
[321100339,1711894283449,-551.36,0.0005863,120]
[321100340,1711894283460,-500.0,0.0005863,120]
[321100341,1711894283471,-1509.08,0.0005863,120]
[321100342,1711894283481,-1066.72,0.0005863,120]
[321100343,1711894283490,-1382.58,0.0005863,120]
[321100344,1711894283499,-500.0,0.0005863,120]
[321100345,1711894283509,-1791.54,0.0005863,120]
[321100346,1711894283518,-500.0,0.0005863,120]
[321100347,1711894283529,-500.23,0.0005863,120]
[321100348,1711894283538,-828.12,0.0005863,120]
[321100349,1711894283547,-534.14,0.0005863,120]
[321100350,1711894283557,-513.82,0.0005863,120]
[321100351,1711894283566,-500.0,0.0005863,120]
[321100352,1711894283575,-7754.49,0.0005863,120]
[321100353,1711894283586,-2108.77,0.0005863,120]
[321100354,1711894283596,-2518.23,0.0005863,120]
[321100355,1711894283606,-2060.41,0.0005863,120]
[321100356,1711894283616,-500.0,0.0005863,120]
[321100357,1711894283625,-441.34,0.0005863,120]
[321100358,1711894283635,-500.0,0.0005863,120]
[321100359,1711894283644,-507.06,0.0005863,120]
[321100360,1711894283653,-501.29,0.0005863,120]
[321100361,1711894283663,-276.27852518,0.0005863,120]
[321100362,1711894283672,-500.0,0.0005863,120]
[321100363,1711894283682,-9968.34,0.0005863,120]
[321100364,1711894283692,-500.0,0.0005863,120]
[321100365,1711894283701,-3471.43,0.0005863,120]
[321100366,1711894283710,-150.5,0.0005877,15]
[321100367,1711894283720,-150.5,0.0005878,15]
[321100368,1711894283729,-2219.8,0.00058787,117]
[321100369,1711894283738,-150.5,0.0005879,15]
[321100370,1711894283748,-664.08,0.00058904,120]
[321100371,1711894283757,-2110.47,0.00058904,120]
[321100372,1711894283767,-9971.6,0.00058904,120]
[321100373,1711894283776,-500.0,0.00058904,120]